[Event "Early-Titled-Tuesday-Blitz-April-16-2024"]
[Site "Chess.com"]
[Date "2024.04.16"]
[Round "1"]
[White "tarno17"]
[Black "Predator0608"]
[Result "0-1"]
[WhiteElo "2132"]
[BlackElo "2567"]
[TimeControl "180+1"]
[EndTime "8:06:30 PDT"]
[Termination "Predator0608 won on time"]

1. e4 {[%clk 0:03:00.9]} 1... e6 {[%clk 0:02:58.5]} 2. d4 {[%clk 0:03:00.6]}
2... d5 {[%clk 0:02:59.4]} 3. Nd2 {[%clk 0:03:01]} 3... Nc6 {[%clk 0:02:59.8]}
4. c3 {[%clk 0:02:59.6]} 4... dxe4 {[%clk 0:02:59.6]} 5. Nxe4 {[%clk 0:02:59.5]}
5... Nf6 {[%clk 0:03:00.5]} 6. Ng3 {[%clk 0:02:57.5]} 6... Be7 {[%clk
0:03:00.2]} 7. Nf3 {[%clk 0:02:58.1]} 7... b6 {[%clk 0:03:00.2]} 8. Bd3 {[%clk
0:02:58.6]} 8... Bb7 {[%clk 0:03:00.1]} 9. O-O {[%clk 0:02:59.1]} 9... O-O
{[%clk 0:02:59.5]} 10. Bc2 {[%clk 0:02:49.8]} 10... h6 {[%clk 0:02:58]} 11. h3
{[%clk 0:02:45.8]} 11... a5 {[%clk 0:02:58.1]} 12. Nh2 {[%clk 0:02:43.1]} 12...
Kh8 {[%clk 0:02:51]} 13. Qd3 {[%clk 0:02:37.3]} 13... Qd5 {[%clk 0:02:47.7]} 14.
Bb3 {[%clk 0:02:03.6]} 14... Qd7 {[%clk 0:02:44.7]} 15. Rd1 {[%clk 0:01:59.7]}
15... Ba6 {[%clk 0:02:27.8]} 16. Qf3 {[%clk 0:01:53.8]} 16... Bb7 {[%clk
0:02:26.8]} 17. Qd3 {[%clk 0:01:53]} 17... a4 {[%clk 0:02:08.3]} 18. Bc2 {[%clk
0:01:50.4]} 18... Ba6 {[%clk 0:02:08.8]} 19. Qf3 {[%clk 0:01:41.8]} 19... a3
{[%clk 0:02:09]} 20. Ng4 {[%clk 0:01:08.6]} 20... axb2 {[%clk 0:01:37.8]} 21.
Bg5 {[%clk 0:00:32.5]} 21... bxa1=Q {[%clk 0:01:19.3]} 22. Rxa1 {[%clk
0:00:12.7]} 22... Qd5 {[%clk 0:01:13.3]} 23. Ne4 {[%clk 0:00:05]} 23... Nxg4
{[%clk 0:00:58.7]} 24. Bxe7 {[%clk 0:00:03.3]} 24... Nxe7 {[%clk 0:00:56.9]} 25.
hxg4 {[%clk 0:00:02.9]} 25... f5 {[%clk 0:00:42.5]} 26. Ng3 {[%clk 0:00:01.6]}
26... Qxf3 {[%clk 0:00:42.9]} 27. gxf3 {[%clk 0:00:01.9]} 27... Bb7 {[%clk
0:00:43.4]} 28. g5 {[%clk 0:00:01.4]} 28... Ra3 {[%clk 0:00:43.3]} 0-1

[Event "Early-Titled-Tuesday-Blitz-April-16-2024"]
[Site "Chess.com"]
[Date "2024.04.16"]
[Round "1"]
[White "LevonAronian"]
[Black "JonSnowNW1"]
[Result "1-0"]
[WhiteElo "3078"]
[BlackElo "2534"]
[TimeControl "180+1"]
[EndTime "8:06:33 PDT"]
[Termination "LevonAronian won by resignation"]

1. e4 {[%clk 0:02:59.8]} 1... c5 {[%clk 0:02:59.2]} 2. Nf3 {[%clk 0:02:59.5]}
2... d6 {[%clk 0:02:59.1]} 3. Bb5+ {[%clk 0:02:59.3]} 3... Nd7 {[%clk
0:02:58.9]} 4. a4 {[%clk 0:02:58.7]} 4... Nf6 {[%clk 0:02:58.5]} 5. Nc3 {[%clk
0:02:58.3]} 5... g6 {[%clk 0:02:56.5]} 6. O-O {[%clk 0:02:56.7]} 6... Bg7 {[%clk
0:02:56.3]} 7. Re1 {[%clk 0:02:56.9]} 7... O-O {[%clk 0:02:55.9]} 8. d4 {[%clk
0:02:57]} 8... cxd4 {[%clk 0:02:55.6]} 9. Nxd4 {[%clk 0:02:56.8]} 9... a6 {[%clk
0:02:51.4]} 10. Bf1 {[%clk 0:02:56.3]} 10... Nc5 {[%clk 0:02:49.1]} 11. a5
{[%clk 0:02:45.2]} 11... Bd7 {[%clk 0:02:35.2]} 12. Bg5 {[%clk 0:02:40.3]} 12...
Ne6 {[%clk 0:02:30.7]} 13. Be3 {[%clk 0:02:34.8]} 13... Rc8 {[%clk 0:02:04.2]}
14. Nb3 {[%clk 0:02:31.3]} 14... Bc6 {[%clk 0:01:58.4]} 15. Nd5 {[%clk
0:02:27.5]} 15... Bxd5 {[%clk 0:01:31.6]} 16. exd5 {[%clk 0:02:26.2]} 16... Nc5
{[%clk 0:01:31.9]} 17. c4 {[%clk 0:02:09.7]} 17... Nfd7 {[%clk 0:01:07.9]} 18.
Nd4 {[%clk 0:02:05]} 18... Ne5 {[%clk 0:01:05.2]} 19. b4 {[%clk 0:02:01.5]}
19... Ncd7 {[%clk 0:01:00.7]} 20. Rc1 {[%clk 0:01:59.1]} 20... Nf6 {[%clk
0:01:00.3]} 21. h3 {[%clk 0:01:57.8]} 21... Ned7 {[%clk 0:00:40.6]} 22. Nb3
{[%clk 0:01:53.3]} 22... Ne4 {[%clk 0:00:28.6]} 23. Bd3 {[%clk 0:01:42.5]} 23...
Nef6 {[%clk 0:00:21.1]} 24. Bf1 {[%clk 0:01:30]} 24... Re8 {[%clk 0:00:20.5]}
25. c5 {[%clk 0:01:23.4]} 25... dxc5 {[%clk 0:00:19.6]} 26. bxc5 {[%clk
0:01:23.2]} 26... Nf8 {[%clk 0:00:16.8]} 27. c6 {[%clk 0:01:14.3]} 27... Qc7
{[%clk 0:00:12.4]} 28. Bb6 {[%clk 0:01:06.6]} 28... Qd6 {[%clk 0:00:05.7]} 29.
cxb7 {[%clk 0:00:58.3]} 29... Rxc1 {[%clk 0:00:05.3]} 30. Nxc1 {[%clk
0:00:58.4]} 30... Nxd5 {[%clk 0:00:05]} 31. Bxa6 {[%clk 0:00:58.4]} 31... Nxb6
{[%clk 0:00:03.3]} 32. Qxd6 {[%clk 0:00:57.5]} 32... exd6 {[%clk 0:00:02.3]} 33.
Rxe8 {[%clk 0:00:57.6]} 1-0

[Event "Early-Titled-Tuesday-Blitz-April-16-2024"]
[Site "Chess.com"]
[Date "2024.04.16"]
[Round "1"]
[White "Mazarini41"]
[Black "Titus369"]
[Result "0-1"]
[WhiteElo "2357"]
[BlackElo "2657"]
[TimeControl "180+1"]
[EndTime "8:06:34 PDT"]
[Termination "Titus369 won by checkmate"]

1. e4 {[%clk 0:02:59.9]} 1... c5 {[%clk 0:02:49.4]} 2. Nf3 {[%clk 0:02:59.5]}
2... d6 {[%clk 0:02:49.1]} 3. d4 {[%clk 0:02:59.4]} 3... cxd4 {[%clk 0:02:49.9]}
4. Nxd4 {[%clk 0:02:59.6]} 4... Nf6 {[%clk 0:02:49.5]} 5. Nc3 {[%clk 0:02:59.1]}
5... a6 {[%clk 0:02:43.2]} 6. f3 {[%clk 0:02:57.6]} 6... e6 {[%clk 0:02:40.7]}
7. Be3 {[%clk 0:02:48.1]} 7... Nbd7 {[%clk 0:02:37]} 8. Qd2 {[%clk 0:02:46.8]}
8... b5 {[%clk 0:02:35.7]} 9. O-O-O {[%clk 0:02:46]} 9... b4 {[%clk 0:02:34.3]}
10. Nc6 {[%clk 0:02:43.1]} 10... bxc3 {[%clk 0:02:31.7]} 11. Qxc3 {[%clk
0:02:31.7]} 11... Qc7 {[%clk 0:02:29.2]} 12. g4 {[%clk 0:02:25.8]} 12... h6
{[%clk 0:02:25.7]} 13. h4 {[%clk 0:02:23.2]} 13... Bb7 {[%clk 0:02:25]} 14. g5
{[%clk 0:02:22.5]} 14... hxg5 {[%clk 0:02:20.4]} 15. Na5 {[%clk 0:01:46.1]}
15... Qxc3 {[%clk 0:02:11.2]} 16. bxc3 {[%clk 0:01:45.6]} 16... Bc8 {[%clk
0:02:04.7]} 17. Bxg5 {[%clk 0:01:38.3]} 17... Nc5 {[%clk 0:01:59.4]} 18. Be2
{[%clk 0:01:28.2]} 18... Be7 {[%clk 0:01:55.2]} 19. Nc6 {[%clk 0:01:20.1]} 19...
Bd7 {[%clk 0:01:47.6]} 20. Nxe7 {[%clk 0:01:18.5]} 20... Kxe7 {[%clk 0:01:48.5]}
21. Rd4 {[%clk 0:00:55.3]} 21... e5 {[%clk 0:01:36.6]} 22. Rd2 {[%clk 0:00:36]}
22... Be6 {[%clk 0:01:23.1]} 23. Rhd1 {[%clk 0:00:35.3]} 23... Rhd8 {[%clk
0:01:20.8]} 24. h5 {[%clk 0:00:21.6]} 24... Na4 {[%clk 0:01:14.9]} 25. Rh1
{[%clk 0:00:20.5]} 25... Rh8 {[%clk 0:01:08.9]} 26. h6 {[%clk 0:00:19.2]} 26...
gxh6 {[%clk 0:01:07.9]} 27. Bxh6 {[%clk 0:00:19.5]} 27... Nxc3 {[%clk
0:01:02.8]} 28. Bd3 {[%clk 0:00:18.4]} 28... Nxa2+ {[%clk 0:01:01.5]} 29. Kb1
{[%clk 0:00:18.5]} 29... Rab8+ {[%clk 0:01:01.6]} 30. Ka1 {[%clk 0:00:17.8]}
30... Nc3 {[%clk 0:01:00.7]} 31. Rdh2 {[%clk 0:00:17.3]} 31... Rb4 {[%clk
0:00:56.8]} 32. Bd2 {[%clk 0:00:12.7]} 32... Ra4+ {[%clk 0:00:53.2]} 33. Kb2
{[%clk 0:00:11.8]} 33... Rb8+ {[%clk 0:00:52.5]} 34. Kc1 {[%clk 0:00:10.8]}
34... Rb1# {[%clk 0:00:45.5]} 0-1

[Event "Early-Titled-Tuesday-Blitz-April-16-2024"]
[Site "Chess.com"]
[Date "2024.04.16"]
[Round "1"]
[White "zsizsi99"]
[Black "Nitzan_Steinberg"]
[Result "0-1"]
[WhiteElo "2500"]
[BlackElo "2898"]
[TimeControl "180+1"]
[EndTime "8:06:39 PDT"]
[Termination "Nitzan_Steinberg won on time"]

1. e4 {[%clk 0:02:55.4]} 1... c5 {[%clk 0:02:59.4]} 2. Nf3 {[%clk 0:02:54.9]}
2... e6 {[%clk 0:02:59.7]} 3. d4 {[%clk 0:02:54.2]} 3... cxd4 {[%clk 0:03:00.1]}
4. Nxd4 {[%clk 0:02:55]} 4... Nc6 {[%clk 0:03:00.5]} 5. Nc3 {[%clk 0:02:55.1]}
5... Qc7 {[%clk 0:02:59.5]} 6. Qd3 {[%clk 0:02:55.2]} 6... a6 {[%clk 0:02:58.6]}
7. Nxc6 {[%clk 0:02:50.9]} 7... dxc6 {[%clk 0:02:56.3]} 8. Qg3 {[%clk
0:02:49.5]} 8... e5 {[%clk 0:02:54.8]} 9. Bc4 {[%clk 0:02:41.9]} 9... Nf6 {[%clk
0:02:52.7]} 10. a4 {[%clk 0:02:39]} 10... Be6 {[%clk 0:02:33.9]} 11. Bxe6 {[%clk
0:02:34.2]} 11... fxe6 {[%clk 0:02:34.8]} 12. O-O {[%clk 0:02:34.7]} 12... Bc5
{[%clk 0:02:23.3]} 13. Be3 {[%clk 0:02:14.1]} 13... Bxe3 {[%clk 0:02:21.2]} 14.
Qxe3 {[%clk 0:02:14.7]} 14... a5 {[%clk 0:02:21.3]} 15. f4 {[%clk 0:02:01.8]}
15... exf4 {[%clk 0:02:13.6]} 16. Rxf4 {[%clk 0:01:59.1]} 16... Qe5 {[%clk
0:02:12.6]} 17. Rd1 {[%clk 0:01:43.2]} 17... O-O {[%clk 0:02:10.4]} 18. Rff1
{[%clk 0:01:24.2]} 18... Ng4 {[%clk 0:01:54.5]} 19. Qg3 {[%clk 0:01:15.4]} 19...
Qc5+ {[%clk 0:01:50]} 20. Kh1 {[%clk 0:01:13.6]} 20... Nf2+ {[%clk 0:01:49.1]}
21. Rxf2 {[%clk 0:01:12.6]} 21... Qxf2 {[%clk 0:01:49.1]} 22. Qd3 {[%clk
0:01:09.2]} 22... Rad8 {[%clk 0:01:40.6]} 23. Qxd8 {[%clk 0:01:03.4]} 23... Rxd8
{[%clk 0:01:40.1]} 24. Rxd8+ {[%clk 0:01:04.1]} 24... Kf7 {[%clk 0:01:40.7]} 25.
h3 {[%clk 0:01:02.6]} 25... Qf1+ {[%clk 0:01:34.2]} 26. Kh2 {[%clk 0:01:02.1]}
26... Qf4+ {[%clk 0:01:35.1]} 27. Kh1 {[%clk 0:01:01.5]} 27... Qc1+ {[%clk
0:01:35.2]} 28. Kh2 {[%clk 0:01:01.8]} 28... Qxb2 {[%clk 0:01:34.1]} 29. Ne2
{[%clk 0:00:56.1]} 29... Qxc2 {[%clk 0:01:28.2]} 30. Nd4 {[%clk 0:00:43.6]}
30... Qxe4 {[%clk 0:01:24.2]} 31. Nf3 {[%clk 0:00:42.8]} 31... Qf4+ {[%clk
0:01:24.2]} 32. Kh1 {[%clk 0:00:42.5]} 32... Ke7 {[%clk 0:01:22.8]} 33. Rg8
{[%clk 0:00:40.2]} 33... Qc1+ {[%clk 0:01:18.7]} 34. Kh2 {[%clk 0:00:39.1]}
34... Qa1 {[%clk 0:01:17.5]} 35. Rb8 {[%clk 0:00:37.7]} 35... Qxa4 {[%clk
0:01:16.6]} 36. Rxb7+ {[%clk 0:00:37.9]} 36... Kf6 {[%clk 0:01:17.1]} 37. g4
{[%clk 0:00:33.4]} 37... h6 {[%clk 0:01:14.6]} 38. h4 {[%clk 0:00:15.5]} 38...
g5 {[%clk 0:01:02.8]} 39. hxg5+ {[%clk 0:00:07.9]} 39... hxg5 {[%clk 0:01:02.8]}
40. Kh3 {[%clk 0:00:02.2]} 40... Qf4 {[%clk 0:01:02.3]} 0-1

[Event "Early-Titled-Tuesday-Blitz-April-16-2024"]
[Site "Chess.com"]
[Date "2024.04.16"]
[Round "1"]
[White "Tagir45"]
[Black "DarZay"]
[Result "1-0"]
[WhiteElo "2627"]
[BlackElo "2321"]
[TimeControl "180+1"]
[EndTime "8:06:39 PDT"]
[Termination "Tagir45 won by checkmate"]

1. d4 {[%clk 0:02:50.7]} 1... d5 {[%clk 0:02:49.5]} 2. c4 {[%clk 0:02:49]} 2...
e6 {[%clk 0:02:33]} 3. Nf3 {[%clk 0:02:39.8]} 3... Nf6 {[%clk 0:02:20.3]} 4. g3
{[%clk 0:02:39.1]} 4... Be7 {[%clk 0:02:08.4]} 5. Bg2 {[%clk 0:02:38.8]} 5...
O-O {[%clk 0:01:54.1]} 6. O-O {[%clk 0:02:37.2]} 6... dxc4 {[%clk 0:01:50.9]} 7.
Qc2 {[%clk 0:02:36]} 7... a6 {[%clk 0:01:47.4]} 8. a4 {[%clk 0:02:33.9]} 8...
Bd7 {[%clk 0:01:18.1]} 9. Qxc4 {[%clk 0:02:24.2]} 9... Bc6 {[%clk 0:01:15.5]}
10. Bg5 {[%clk 0:02:23.6]} 10... Nbd7 {[%clk 0:01:05]} 11. Nc3 {[%clk
0:02:22.1]} 11... Ne4 {[%clk 0:00:55.4]} 12. Bxe7 {[%clk 0:01:45.1]} 12... Qxe7
{[%clk 0:00:50.2]} 13. Nxe4 {[%clk 0:01:37]} 13... Bxe4 {[%clk 0:00:49.7]} 14.
Qxc7 {[%clk 0:01:36.9]} 14... Rfc8 {[%clk 0:00:45]} 15. Qf4 {[%clk 0:01:36.3]}
15... f5 {[%clk 0:00:43.2]} 16. Rfc1 {[%clk 0:01:30.1]} 16... Qb4 {[%clk
0:00:40.8]} 17. Ng5 {[%clk 0:01:22.2]} 17... Bxg2 {[%clk 0:00:32.3]} 18. Kxg2
{[%clk 0:01:23.1]} 18... Qxb2 {[%clk 0:00:29]} 19. Nxe6 {[%clk 0:01:03]} 19...
Qxe2 {[%clk 0:00:28.9]} 20. Qxf5 {[%clk 0:01:02.2]} 20... Nf6 {[%clk 0:00:22.1]}
21. Nxg7 {[%clk 0:00:45]} 21... Rxc1 {[%clk 0:00:19.3]} 22. Rxc1 {[%clk
0:00:38.7]} 22... Qe4+ {[%clk 0:00:18.7]} 23. Qxe4 {[%clk 0:00:36.6]} 23... Nxe4
{[%clk 0:00:17.1]} 24. Ne6 {[%clk 0:00:30.4]} 24... b5 {[%clk 0:00:16.3]} 25.
axb5 {[%clk 0:00:26.9]} 25... axb5 {[%clk 0:00:16.2]} 26. Rc7 {[%clk 0:00:27.3]}
26... b4 {[%clk 0:00:14.2]} 27. Rg7+ {[%clk 0:00:26.1]} 27... Kh8 {[%clk
0:00:13.8]} 28. Rb7 {[%clk 0:00:27]} 28... Ra4 {[%clk 0:00:12.9]} 29. Rb8#
{[%clk 0:00:26.8]} 1-0

[Event "Early-Titled-Tuesday-Blitz-April-16-2024"]
[Site "Chess.com"]
[Date "2024.04.16"]
[Round "1"]
[White "stepanosinovsky"]
[Black "mr_gustavo"]
[Result "1/2-1/2"]
[WhiteElo "2423"]
[BlackElo "2707"]
[TimeControl "180+1"]
[EndTime "8:06:40 PDT"]
[Termination "Game drawn by repetition"]

1. e4 {[%clk 0:03:00.9]} 1... e6 {[%clk 0:02:54.4]} 2. d3 {[%clk 0:02:59.1]}
2... d5 {[%clk 0:02:53.8]} 3. Nd2 {[%clk 0:03:00]} 3... Nf6 {[%clk 0:02:29.5]}
4. Ngf3 {[%clk 0:02:59]} 4... c5 {[%clk 0:02:27.3]} 5. g3 {[%clk 0:02:58.7]}
5... Nc6 {[%clk 0:02:27]} 6. Bg2 {[%clk 0:02:58.6]} 6... Be7 {[%clk 0:02:26.6]}
7. O-O {[%clk 0:02:58.7]} 7... b6 {[%clk 0:02:25.2]} 8. Re1 {[%clk 0:02:59.5]}
8... Bb7 {[%clk 0:02:24.3]} 9. Qe2 {[%clk 0:02:52.2]} 9... Qc7 {[%clk 0:02:23]}
10. c3 {[%clk 0:02:48.4]} 10... a5 {[%clk 0:02:07.7]} 11. a4 {[%clk 0:02:39.4]}
11... Ba6 {[%clk 0:02:01.8]} 12. exd5 {[%clk 0:02:35.3]} 12... Nxd5 {[%clk
0:02:00.3]} 13. Nc4 {[%clk 0:02:29.6]} 13... O-O {[%clk 0:01:58]} 14. Nfe5
{[%clk 0:02:09.4]} 14... Nxe5 {[%clk 0:01:56.7]} 15. Nxe5 {[%clk 0:01:59.1]}
15... Rad8 {[%clk 0:01:49.4]} 16. Bd2 {[%clk 0:01:26.4]} 16... Bf6 {[%clk
0:01:40.1]} 17. Ng4 {[%clk 0:01:10.6]} 17... h5 {[%clk 0:01:35.3]} 18. Bxd5
{[%clk 0:01:00.2]} 18... Rxd5 {[%clk 0:01:23.9]} 19. Nxf6+ {[%clk 0:00:57.6]}
19... gxf6 {[%clk 0:01:24.8]} 20. c4 {[%clk 0:00:48]} 20... Rf5 {[%clk
0:01:22.8]} 21. g4 {[%clk 0:00:22.8]} 21... Re5 {[%clk 0:00:58.8]} 22. Qf3
{[%clk 0:00:21.1]} 22... Bb7 {[%clk 0:00:57.8]} 23. Qxf6 {[%clk 0:00:19.7]}
23... Qc6 {[%clk 0:00:49.8]} 24. Re4 {[%clk 0:00:12.8]} 24... Rxe4 {[%clk
0:00:43.7]} 25. Qg5+ {[%clk 0:00:11]} 25... Kh7 {[%clk 0:00:42.8]} 26. Qxh5+
{[%clk 0:00:10.9]} 26... Kg8 {[%clk 0:00:42.9]} 27. Qg5+ {[%clk 0:00:10.7]}
27... Kh7 {[%clk 0:00:42.3]} 28. Qh6+ {[%clk 0:00:08]} 28... Kg8 {[%clk
0:00:42.2]} 29. Qg5+ {[%clk 0:00:06.9]} 29... Kh8 {[%clk 0:00:37.8]} 30. Qf6+
{[%clk 0:00:06.5]} 30... Kg8 {[%clk 0:00:32.8]} 31. Qg5+ {[%clk 0:00:06.1]}
1/2-1/2

[Event "Early-Titled-Tuesday-Blitz-April-16-2024"]
[Site "Chess.com"]
[Date "2024.04.16"]
[Round "1"]
[White "Leo_C"]
[Black "zacachess"]
[Result "1-0"]
[WhiteElo "2657"]
[BlackElo "2358"]
[TimeControl "180+1"]
[EndTime "8:06:41 PDT"]
[Termination "Leo_C won on time"]

1. e4 {[%clk 0:03:00.9]} 1... c5 {[%clk 0:02:59.6]} 2. Nf3 {[%clk 0:03:01]} 2...
d6 {[%clk 0:03:00]} 3. d4 {[%clk 0:03:01.2]} 3... cxd4 {[%clk 0:03:00.9]} 4.
Qxd4 {[%clk 0:03:01.9]} 4... Nc6 {[%clk 0:03:00.3]} 5. Bb5 {[%clk 0:03:01.7]}
5... a6 {[%clk 0:03:00.1]} 6. Bxc6+ {[%clk 0:03:01]} 6... bxc6 {[%clk 0:03:01]}
7. O-O {[%clk 0:02:59.6]} 7... e5 {[%clk 0:03:00.9]} 8. Qa4 {[%clk 0:02:56.1]}
8... Bd7 {[%clk 0:02:52.4]} 9. c4 {[%clk 0:02:55.3]} 9... Ne7 {[%clk 0:02:31.2]}
10. c5 {[%clk 0:02:50.6]} 10... Ng6 {[%clk 0:02:28.6]} 11. cxd6 {[%clk
0:02:43.9]} 11... Bxd6 {[%clk 0:02:28.5]} 12. Rd1 {[%clk 0:02:43.8]} 12... Qe7
{[%clk 0:02:17.4]} 13. Nbd2 {[%clk 0:02:39.1]} 13... O-O {[%clk 0:02:07.3]} 14.
Nc4 {[%clk 0:02:38.5]} 14... Bc5 {[%clk 0:01:59.4]} 15. h3 {[%clk 0:02:32]}
15... Be6 {[%clk 0:01:37.9]} 16. Ncxe5 {[%clk 0:02:08.3]} 16... Nxe5 {[%clk
0:01:32.3]} 17. Nxe5 {[%clk 0:02:09.2]} 17... Bxh3 {[%clk 0:01:24.1]} 18. Nd3
{[%clk 0:01:28]} 18... Bg4 {[%clk 0:01:16.7]} 19. Re1 {[%clk 0:01:21.7]} 19...
Rfd8 {[%clk 0:01:02.6]} 20. Nxc5 {[%clk 0:01:17.1]} 20... Qxc5 {[%clk
0:01:03.5]} 21. Be3 {[%clk 0:01:16.1]} 21... Qb5 {[%clk 0:00:49.4]} 22. Qc2
{[%clk 0:01:15.5]} 22... Rac8 {[%clk 0:00:19.5]} 23. f3 {[%clk 0:01:13.9]} 23...
Be6 {[%clk 0:00:19.1]} 24. Bc5 {[%clk 0:00:57.5]} 24... Qd3 {[%clk 0:00:14.2]}
25. Qc1 {[%clk 0:00:50.5]} 25... Qc4 {[%clk 0:00:11]} 26. Qe3 {[%clk 0:00:37]}
26... Rd3 {[%clk 0:00:06.6]} 27. Qf2 {[%clk 0:00:37.2]} 27... Rcd8 {[%clk
0:00:06.9]} 28. Be3 {[%clk 0:00:37.5]} 1-0

[Event "Early-Titled-Tuesday-Blitz-April-16-2024"]
[Site "Chess.com"]
[Date "2024.04.16"]
[Round "1"]
[White "20ofJuly"]
[Black "Kazmin_Semyon"]
[Result "0-1"]
[WhiteElo "2209"]
[BlackElo "2586"]
[TimeControl "180+1"]
[EndTime "8:06:42 PDT"]
[Termination "Kazmin_Semyon won on time"]

1. e4 {[%clk 0:02:56]} 1... e6 {[%clk 0:02:57.8]} 2. d4 {[%clk 0:02:55.6]} 2...
d5 {[%clk 0:02:58.4]} 3. exd5 {[%clk 0:02:56.5]} 3... exd5 {[%clk 0:02:59.3]} 4.
Nf3 {[%clk 0:02:56.5]} 4... Nc6 {[%clk 0:02:59.2]} 5. Bd3 {[%clk 0:02:57.2]}
5... Bg4 {[%clk 0:02:59.3]} 6. c3 {[%clk 0:02:56.7]} 6... Bd6 {[%clk 0:02:59.6]}
7. O-O {[%clk 0:02:54.8]} 7... Nge7 {[%clk 0:03:00.3]} 8. Re1 {[%clk 0:02:53.8]}
8... Qd7 {[%clk 0:03:00.5]} 9. Nbd2 {[%clk 0:02:53.2]} 9... O-O-O {[%clk
0:03:00.4]} 10. b4 {[%clk 0:02:52.9]} 10... Ng6 {[%clk 0:02:59.3]} 11. b5 {[%clk
0:02:49.3]} 11... Nce7 {[%clk 0:02:59.5]} 12. c4 {[%clk 0:02:31.6]} 12... Nf5
{[%clk 0:02:38.3]} 13. c5 {[%clk 0:02:13.4]} 13... Bf4 {[%clk 0:02:38.4]} 14. h3
{[%clk 0:01:56.6]} 14... Bxf3 {[%clk 0:02:38.4]} 15. Nxf3 {[%clk 0:01:44.2]}
15... Nfe7 {[%clk 0:01:49]} 16. c6 {[%clk 0:01:17.3]} 16... Qd6 {[%clk
0:01:46.9]} 17. Qa4 {[%clk 0:00:44.4]} 17... Bxc1 {[%clk 0:01:01.2]} 18. Qxa7
{[%clk 0:00:40.5]} 18... bxc6 {[%clk 0:01:01.9]} 19. Raxc1 {[%clk 0:00:22.5]}
19... Kd7 {[%clk 0:01:02]} 20. bxc6+ {[%clk 0:00:20.2]} 20... Ke8 {[%clk
0:01:01.9]} 21. Ne5 {[%clk 0:00:18.1]} 21... Nf4 {[%clk 0:01:01.1]} 22. Bf1
{[%clk 0:00:14.4]} 22... f6 {[%clk 0:01:00]} 23. Nd7 {[%clk 0:00:12.6]} 23...
Ne6 {[%clk 0:00:55.2]} 24. Nc5 {[%clk 0:00:11.8]} 24... Nxc5 {[%clk 0:00:45.5]}
25. dxc5 {[%clk 0:00:10.3]} 25... Qxc6 {[%clk 0:00:42.2]} 26. a4 {[%clk
0:00:07.9]} 26... Ra8 {[%clk 0:00:34.1]} 27. Bb5 {[%clk 0:00:04.9]} 27... Rxa7
{[%clk 0:00:34.7]} 28. Bxc6+ {[%clk 0:00:05.4]} 28... Kf7 {[%clk 0:00:35.3]} 29.
Bd7 {[%clk 0:00:04.4]} 29... c6 {[%clk 0:00:32.3]} 30. Be6+ {[%clk 0:00:02.7]}
30... Kg6 {[%clk 0:00:32.9]} 0-1

[Event "Early-Titled-Tuesday-Blitz-April-16-2024"]
[Site "Chess.com"]
[Date "2024.04.16"]
[Round "1"]
[White "frederiksvane"]
[Black "nickmatta"]
[Result "1-0"]
[WhiteElo "3041"]
[BlackElo "2530"]
[TimeControl "180+1"]
[EndTime "8:06:49 PDT"]
[Termination "frederiksvane won by resignation"]

1. c4 {[%clk 0:03:00.9]} 1... e6 {[%clk 0:02:59.3]} 2. g3 {[%clk 0:02:56.2]}
2... d5 {[%clk 0:02:59.7]} 3. Bg2 {[%clk 0:02:56.1]} 3... Nf6 {[%clk 0:03:00.4]}
4. Nf3 {[%clk 0:02:56.2]} 4... dxc4 {[%clk 0:03:00.7]} 5. Qa4+ {[%clk
0:02:55.3]} 5... c6 {[%clk 0:03:01.4]} 6. Qxc4 {[%clk 0:02:55]} 6... b5 {[%clk
0:03:02.3]} 7. Qb3 {[%clk 0:02:52.3]} 7... Bb7 {[%clk 0:03:03]} 8. d4 {[%clk
0:02:51.3]} 8... Nbd7 {[%clk 0:02:58.7]} 9. O-O {[%clk 0:02:50.9]} 9... a6
{[%clk 0:02:58.7]} 10. Ne5 {[%clk 0:02:51.6]} 10... Nxe5 {[%clk 0:02:57.5]} 11.
dxe5 {[%clk 0:02:52.5]} 11... Nd7 {[%clk 0:02:58.4]} 12. Rd1 {[%clk 0:02:47.5]}
12... Qc7 {[%clk 0:02:57.4]} 13. Nc3 {[%clk 0:02:42.9]} 13... Be7 {[%clk
0:02:38.9]} 14. Bf4 {[%clk 0:02:39.1]} 14... O-O {[%clk 0:02:35]} 15. Ne4 {[%clk
0:02:30.6]} 15... c5 {[%clk 0:02:23.8]} 16. Nf6+ {[%clk 0:02:14.9]} 16... gxf6
{[%clk 0:02:10.6]} 17. exf6 {[%clk 0:02:14.2]} 17... e5 {[%clk 0:02:05.8]} 18.
fxe7 {[%clk 0:02:09.4]} 18... Rfe8 {[%clk 0:02:02.9]} 19. Bxb7 {[%clk
0:02:04.9]} 19... Qxb7 {[%clk 0:02:01.4]} 20. Bg5 {[%clk 0:02:02.9]} 20... c4
{[%clk 0:01:57.9]} 21. Qe3 {[%clk 0:01:59.2]} 21... f6 {[%clk 0:01:57.4]} 22.
Rd6 {[%clk 0:01:33.7]} 22... Kf7 {[%clk 0:01:37.1]} 23. Bh4 {[%clk 0:01:09.2]}
23... Rxe7 {[%clk 0:01:01.7]} 24. Qh6 {[%clk 0:01:09.4]} 24... Kg8 {[%clk
0:00:42]} 25. Rad1 {[%clk 0:01:09.3]} 25... Rf8 {[%clk 0:00:35.3]} 26. Bxf6
{[%clk 0:01:09.4]} 26... Nxf6 {[%clk 0:00:27.4]} 27. Rxf6 {[%clk 0:01:09.5]}
27... Rxf6 {[%clk 0:00:14.7]} 28. Qxf6 {[%clk 0:01:04.3]} 28... Re8 {[%clk
0:00:14.4]} 29. Rd6 {[%clk 0:00:58.2]} 29... Qf7 {[%clk 0:00:11]} 30. Qxf7+
{[%clk 0:00:54.9]} 30... Kxf7 {[%clk 0:00:11.9]} 31. Rxa6 {[%clk 0:00:55.2]}
31... Rd8 {[%clk 0:00:10.7]} 32. Rb6 {[%clk 0:00:55]} 32... Rd5 {[%clk
0:00:08.9]} 33. e3 {[%clk 0:00:52]} 33... e4 {[%clk 0:00:08.2]} 34. Kg2 {[%clk
0:00:52.1]} 34... Ke7 {[%clk 0:00:04.9]} 35. a4 {[%clk 0:00:39]} 35... bxa4
{[%clk 0:00:02.1]} 36. Rb4 {[%clk 0:00:39]} 36... Rd2 {[%clk 0:00:02.1]} 37.
Rxc4 {[%clk 0:00:37.3]} 1-0